bitfinex-derivatives/quotes_BTCF0:USTF0_20250119
["timestamp","ask_amount","ask_price","bid_price","bid_amount"]
[1737283779198,0.10572258,105200.0,105190.0,0.81634763]
[1737283780099,0.46652258,105200.0,105190.0,0.76873163]
[1737283780304,0.52463416,105200.0,105190.0,0.743981]
[1737283780703,0.46652258,105200.0,105190.0,0.743981]
[1737283781004,0.46652258,105200.0,105190.0,0.34208635]
[1737283781205,0.46652258,105200.0,105190.0,0.51047876]
[1737283782402,0.10572258,105200.0,105190.0,0.51047876]
[1737283782600,0.46652258,105200.0,105190.0,0.22687945]
[1737283783509,0.408411,105200.0,105190.0,0.27449545]
[1737283784204,0.46652258,105200.0,105190.0,0.28412924]
[1737283784502,0.10572258,105200.0,105190.0,0.28412924]
[1737283784704,0.10572258,105200.0,105190.0,0.29187282]
[1737283785098,0.10572258,105200.0,105190.0,0.23516265]
[1737283786105,0.46652258,105200.0,105190.0,0.17980307]
[1737283786498,0.46652258,105200.0,105190.0,0.40668252]
[1737283787711,0.46652258,105200.0,105190.0,0.17980307]
[1737283789008,0.52463416,105200.0,105190.0,0.17016928]
[1737283790103,0.46652258,105200.0,105190.0,0.17016928]
[1737283791200,0.52463416,105200.0,105190.0,0.17016928]
[1737283791408,0.46652258,105200.0,105190.0,0.17016928]
[1737283791602,0.52463416,105200.0,105190.0,0.17016928]
[1737283791907,0.04762,105180.0,105170.0,0.21779228]
[1737283792106,0.40842,105180.0,105170.0,0.23484861]
[1737283793404,0.46653158,105180.0,105170.0,0.23484861]
[1737283793906,0.40842,105180.0,105170.0,0.23484861]
[1737283794109,0.46653158,105180.0,105170.0,0.06467936]
[1737283794310,0.52223196,105190.0,105180.0,0.04762]
[1737283794502,0.52223196,105190.0,105180.0,0.05536471]
[1737283794908,0.58034354,105190.0,105180.0,0.05536471]
[1737283795302,0.47461496,105190.0,105180.0,0.05536471]
[1737283795501,0.61684074,105190.0,105180.0,0.05536471]
[1737283796508,0.61684074,105190.0,105180.0,0.05536413]
[1737283796704,0.50302578,105190.0,105180.0,0.05536413]
[1737283797512,0.18984178,105190.0,105180.0,0.05536413]
[1737283798115,0.18984178,105190.0,105180.0,0.05536389]
[1737283798316,0.18984178,105190.0,105180.0,0.05059842]
[1737283798706,0.24795336,105190.0,105180.0,0.05059842]
[1737283799015,0.24795336,105190.0,105180.0,0.04762]
[1737283799314,0.58056893,105190.0,105180.0,0.27449945]
[1737283800015,0.58056893,105190.0,105180.0,0.27747799]
[1737283800210,0.21976893,105190.0,105180.0,0.63529945]
[1737283800417,0.21976893,105190.0,105180.0,0.58193155]
[1737283800617,0.52245735,105190.0,105180.0,0.22113155]
[1737283800919,0.58056893,105190.0,105180.0,0.22113155]
[1737283801117,0.58056893,105190.0,105180.0,0.04762]
[1737283801717,0.58056893,105190.0,105180.0,0.27747799]
[1737283802118,0.52245735,105190.0,105180.0,0.27747799]
[1737283802321,0.52245735,105190.0,105180.0,0.28224363]
[1737283802711,0.52245735,105190.0,105180.0,0.27747799]
[1737283803614,0.16165735,105190.0,105180.0,0.27747799]
[1737283803819,0.21976893,105190.0,105180.0,0.28224365]
[1737283804214,0.58056893,105190.0,105180.0,0.27449945]
[1737283804613,0.58056893,105190.0,105180.0,0.22687945]
[1737283804809,0.04762,105180.0,105170.0,0.28359931]
[1737283805020,0.70803393,105180.0,105170.0,0.28359931]
[1737283805219,0.047625,105170.0,105160.0,0.34208635]
[1737283805421,0.46653658,105170.0,105160.0,0.34208635]
[1737283805625,0.047629,105160.0,105150.0,0.43357224]
[1737283805813,0.46654058,105160.0,105150.0,0.4413184]
[1737283806224,0.46654058,105160.0,105150.0,0.44131858]
[1737283806426,0.46654058,105160.0,105150.0,0.43357224]
[1737283807029,0.46654058,105160.0,105150.0,0.01108589]
[1737283807030,0.77855343,105160.0,105150.0,0.01108589]
[1737283807333,0.77855343,105160.0,105150.0,0.00142637]
[1737283808219,0.63632765,105160.0,105150.0,0.00142637]
[1737283811136,0.69443923,105160.0,105150.0,0.00142637]
[1737283811329,0.70401261,105160.0,105150.0,0.00142637]
[1737283811532,0.70401261,105160.0,105120.0,0.32778648]
[1737283811833,0.10575458,105130.0,105120.0,0.38318115]
[1737283812225,0.047643,105130.0,105120.0,0.38318115]
[1737283812426,0.047643,105130.0,105120.0,0.21249467]
[1737283812637,0.10575458,105130.0,105120.0,0.21249467]
[1737283812927,0.047643,105130.0,105120.0,0.16484767]
[1737283813830,0.16148572,105130.0,105120.0,0.16484767]
[1737283814525,0.5803973,105130.0,105120.0,0.08624767]
[1737283814926,0.46655458,105130.0,105120.0,0.24918648]
[1737283815127,0.46655458,105130.0,105120.0,0.17068648]
[1737283815530,0.46655458,105130.0,105120.0,0.18036728]
[1737283815726,0.52466616,105130.0,105100.0,0.44208635]
[1737283815928,0.52466616,105130.0,105100.0,0.44983534]
[1737283815929,0.46656358,105110.0,105100.0,0.44983534]
[1737283816133,0.46656358,105110.0,105100.0,0.1]
[1737283816533,0.408452,105110.0,105100.0,0.1]
[1737283816751,0.408452,105110.0,105100.0,0.18965037]
[1737283817040,0.047652,105110.0,105100.0,0.1896503]
[1737283818341,0.047652,105110.0,105100.0,0.2373073]
[1737283818535,0.047652,105110.0,105100.0,0.29541888]
[1737283818833,0.047652,105110.0,105100.0,0.2373068]
[1737283819232,0.3608,105120.0,105100.0,0.29541838]
[1737283819431,0.3608,105120.0,105110.0,0.0804]
[1737283819432,0.40845,105120.0,105110.0,0.0804]
[1737283819828,0.04765,105120.0,105110.0,0.128052]
[1737283820033,0.04765,105120.0,105110.0,0.21100176]
[1737283820942,0.04765,105120.0,105110.0,0.21100131]
[1737283821347,0.04765,105120.0,105110.0,0.2062325]
[1737283824739,0.04765,105120.0,105110.0,0.62514408]
[1737283824940,0.04765,105120.0,105110.0,0.26911277]
[1737283825144,0.04765,105120.0,105110.0,0.57180119]
[1737283826433,0.04765,105120.0,105110.0,0.21100119]
[1737283826945,0.04765,105120.0,105110.0,0.57180119]
[1737283827246,0.04765,105120.0,105110.0,0.57180094]
[1737283828344,0.04765,105120.0,105110.0,0.58121682]
[1737283831445,0.04765,105120.0,105110.0,0.58717759]
[1737283832443,0.04765,105120.0,105110.0,0.58121682]
[1737283834745,0.04765,105120.0,105110.0,0.58121688]
[1737283835136,0.40845,105120.0,105110.0,0.22041688]
[1737283835341,0.40845,105120.0,105110.0,0.09756488]
[1737283835551,0.46656158,105120.0,105110.0,0.01370978]
[1737283835755,0.047652,105110.0,105100.0,0.59841414]
[1737283836049,0.408452,105110.0,105100.0,0.48256961]
[1737283836446,0.408452,105110.0,105100.0,0.4860745]
[1737283836852,0.408452,105110.0,105100.0,0.20171636]
[1737283837751,0.047652,105110.0,105100.0,0.20171636]
[1737283838849,0.047652,105110.0,105100.0,0.24937336]
[1737283839350,0.46656358,105110.0,105100.0,0.11750313]
[1737283839557,0.10576358,105110.0,105100.0,0.11750313]
[1737283839849,0.047652,105110.0,105100.0,0.11750313]
[1737283840444,0.408452,105110.0,105100.0,0.76391981]
[1737283840645,0.047652,105110.0,105100.0,0.76363304]
[1737283840850,0.408452,105110.0,105100.0,0.76363304]
[1737283841247,0.3608,105110.0,105100.0,0.76363304]
[1737283841453,0.1423034,105130.0,105120.0,0.047647]
[1737283841646,0.16978707,105140.0,105130.0,0.047643]
[1737283841846,1.14155614,105160.0,105140.0,0.047636]
[1737283841847,0.19809749,105150.0,105140.0,0.047636]
[1737283842051,0.19809749,105150.0,105140.0,0.55418172]
[1737283842247,0.07740993,105150.0,105140.0,0.55418172]
[1737283842549,0.42308999,105160.0,105150.0,0.047634]
[1737283842749,0.29548999,105160.0,105150.0,0.55559096]
[1737283842945,0.00020235,105180.0,105150.0,0.85559033]
[1737283843151,0.00020235,105180.0,105170.0,0.82733658]
[1737283843352,0.00020235,105180.0,105170.0,0.83508133]
[1737283843957,0.00020235,105180.0,105170.0,2.33508133]
[1737283844158,0.00020235,105180.0,105170.0,2.97486074]
[1737283844662,0.40839,105250.0,105230.0,0.047597]
[1737283844958,0.078,105250.0,105240.0,0.047593]
[1737283848063,0.078,105250.0,105240.0,0.408393]
[1737283849561,0.078,105250.0,105240.0,0.46650458]
[1737283849960,0.203485,105260.0,105240.0,0.46650458]
[1737283850155,0.203485,105260.0,105240.0,0.408393]
[1737283850460,0.203485,105260.0,105240.0,0.41807024]
[1737283851356,0.26159658,105260.0,105240.0,0.41807024]
[1737283851552,0.26159658,105260.0,105240.0,0.05727024]
[1737283851756,0.047589,105250.0,105240.0,0.05727024]
[1737283852953,0.047589,105250.0,105230.0,0.3608]
[1737283853155,0.46650058,105250.0,105230.0,0.408396]
[1737283853665,0.46650058,105250.0,105230.0,0.4176585]
[1737283854664,0.408389,105250.0,105230.0,0.4176585]
[1737283855166,0.047593,105240.0,105230.0,0.4176585]
[1737283855962,0.047593,105240.0,105230.0,0.0568585]
[1737283856166,0.41891158,105250.0,105230.0,0.0568585]
[1737283856664,0.047593,105240.0,105230.0,0.0568585]
[1737283858366,0.047593,105240.0,105230.0,0.11497008]
[1737283859366,0.047593,105240.0,105230.0,0.47577008]
[1737283860061,0.047593,105240.0,105230.0,0.11497008]
[1737283860267,0.047593,105240.0,105230.0,0.47577008]
[1737283860767,0.047593,105240.0,105230.0,0.4176585]
[1737283860963,0.047593,105240.0,105230.0,0.047596]
[1737283862362,0.047593,105240.0,105220.0,0.42822545]
[1737283862568,0.047598,105230.0,105220.0,0.41771487]
[1737283863271,0.41891158,105250.0,105220.0,0.41771487]
[1737283863468,0.41891158,105250.0,105230.0,0.047597]
[1737283863469,0.047594,105240.0,105230.0,0.047597]
[1737283864266,0.047594,105240.0,105230.0,0.10570858]
[1737283864667,0.047594,105240.0,105230.0,0.46650858]
[1737283865459,0.6660588,105260.0,105230.0,0.46650858]
[1737283865665,0.6660588,105260.0,105230.0,0.408397]
[1737283865878,0.408392,105250.0,105230.0,0.047597]
[1737283866168,0.047593,105240.0,105230.0,0.047597]
[1737283866557,0.408393,105240.0,105230.0,0.047597]
[1737283867872,0.047598,105230.0,105220.0,0.28087813]
[1737283868776,0.41891158,105240.0,105220.0,0.28087813]
[1737283869169,0.047598,105230.0,105220.0,0.28087813]
[1737283869789,0.047595,105240.0,105230.0,0.047597]
[1737283869980,0.047595,105240.0,105230.0,0.10570858]
[1737283870187,0.047595,105240.0,105230.0,0.46650858]
[1737283870384,0.047595,105240.0,105230.0,0.408397]
[1737283870781,0.047595,105240.0,105230.0,0.46650858]
[1737283871084,0.20832613,105250.0,105240.0,0.047593]
[1737283871291,0.047589,105250.0,105240.0,0.46650458]
[1737283871485,0.047589,105250.0,105240.0,0.408393]
[1737283872085,0.047589,105250.0,105240.0,0.41613281]
[1737283872486,0.047589,105250.0,105240.0,0.408393]
[1737283872991,0.047589,105250.0,105240.0,1.94026575]
[1737283873183,0.047589,105250.0,105240.0,1.93252578]
[1737283874184,0.047589,105250.0,105240.0,1.94026541]
[1737283874584,0.047589,105250.0,105240.0,1.99837699]
[1737283874785,0.207685,105260.0,105250.0,0.047589]
[1737283874985,0.207685,105260.0,105250.0,0.408389]
[1737283875788,0.26579658,105260.0,105250.0,0.408389]
[1737283876588,0.26579658,105260.0,105250.0,1.93252178]
[1737283876886,0.62659658,105260.0,105250.0,1.52413278]
[1737283877295,0.26579658,105260.0,105250.0,1.52413278]
[1737283877688,0.26579658,105260.0,105250.0,0.94221433]
[1737283878099,0.207685,105260.0,105250.0,0.98980333]
[1737283878594,0.207685,105260.0,105250.0,1.35060333]
[1737283878790,0.207685,105260.0,105250.0,0.98980333]
[1737283879592,0.207685,105260.0,105250.0,1.35060333]
[1737283880192,0.207685,105260.0,105250.0,1.93287209]
[1737283880387,0.42819444,105270.0,105250.0,1.93287209]
[1737283880591,0.06739444,105270.0,105250.0,1.93287209]
[1737283880799,0.047585,105260.0,105250.0,1.93287209]
[1737283880989,0.047585,105260.0,105250.0,1.35855118]
[1737283882294,0.047585,105260.0,105250.0,1.36152776]
[1737283882490,0.047585,105260.0,105250.0,0.64759952]
[1737283882687,0.3608,105290.0,105250.0,0.7057111]
[1737283882893,0.047576,105280.0,105270.0,0.408378]
[1737283883296,0.10568758,105280.0,105260.0,0.047583]
[1737283883491,0.04758,105270.0,105260.0,0.05532086]
[1737283883792,0.10569158,105270.0,105260.0,0.51057569]
[1737283884192,0.18509158,105270.0,105260.0,0.51057569]
[1737283884593,0.54589158,105270.0,105260.0,0.51057569]
[1737283885094,0.047584,105260.0,105250.0,0.51057569]
[1737283885295,0.26679558,105260.0,105250.0,0.51057569]
[1737283885495,0.62759558,105260.0,105250.0,0.51057569]
[1737283885797,0.62759558,105260.0,105250.0,0.26598469]
[1737283886001,0.047589,105250.0,105240.0,0.22688761]
[1737283886298,0.46650058,105250.0,105240.0,0.22688761]
[1737283887204,0.63751267,105250.0,105220.0,0.408402]
[1737283887388,0.047598,105230.0,105220.0,0.408402]
[1737283887701,0.047598,105230.0,105220.0,0.4113794]
[1737283888286,0.047594,105240.0,105230.0,0.047596]
[1737283888490,0.19008189,105240.0,105230.0,0.48827315]
[1737283889392,0.19008189,105240.0,105230.0,0.48827304]
[1737283889587,0.047594,105240.0,105230.0,1.22050535]
[1737283890788,0.04759,105250.0,105240.0,0.047592]
[1737283890992,0.04759,105250.0,105240.0,0.486292]
[1737283891501,0.04759,105250.0,105240.0,0.562292]
[1737283891706,0.04759,105250.0,105240.0,0.95414052]
[1737283892192,0.10570158,105250.0,105240.0,0.54574852]
[1737283892695,0.46650158,105250.0,105240.0,0.46974852]
[1737283892898,0.46650158,105250.0,105240.0,0.39184852]
[1737283893100,0.047597,105240.0,105230.0,0.42662659]
[1737283893402,0.46650858,105240.0,105230.0,0.42662659]
[1737283893698,0.46650858,105240.0,105230.0,0.34038379]
[1737283894602,0.047601,105230.0,105220.0,0.41618379]
[1737283895596,0.047601,105230.0,105220.0,0.34038379]
[1737283895891,0.3608,105230.0,105210.0,0.54619379]
[1737283896094,0.047606,105220.0,105210.0,0.54619379]
[1737283896705,0.047606,105220.0,105210.0,0.90699379]
[1737283897000,0.047606,105220.0,105210.0,0.56958774]
[1737283897203,0.047606,105220.0,105210.0,0.62472158]
[1737283897399,0.047606,105220.0,105210.0,0.62769929]
[1737283897596,0.047606,105220.0,105210.0,0.63735464]
[1737283898099,0.14248789,105230.0,105220.0,0.047606]
[1737283898297,0.14248789,105230.0,105220.0,0.46651758]
[1737283898503,0.14248789,105230.0,105220.0,0.4694952]
[1737283899298,0.14248789,105230.0,105220.0,0.46949488]
[1737283899605,0.19008689,105240.0,105220.0,0.46949488]
[1737283899799,0.19008689,105240.0,105230.0,0.4407]
[1737283901706,0.19008689,105240.0,105230.0,0.488301]
[1737283902205,0.19008689,105240.0,105230.0,1.988301]
[1737283902408,0.21861109,105240.0,105230.0,0.488301]
[1737283903107,0.21861109,105240.0,105230.0,0.49788092]
[1737283903305,0.17101209,105240.0,105230.0,0.5559925]
[1737283903607,0.17101209,105250.0,105240.0,0.047596]
[1737283903796,0.17101209,105250.0,105240.0,0.569396]
[1737283905003,0.16149936,105260.0,105250.0,0.047591]
[1737283905205,0.16149936,105260.0,105250.0,0.408391]
[1737283905408,0.21961094,105260.0,105250.0,0.408391]
[1737283905711,0.047591,105250.0,105240.0,0.208596]
[1737283905911,0.408391,105250.0,105240.0,0.208596]
[1737283906203,0.46650258,105250.0,105240.0,0.161]
[1737283906600,0.047597,105240.0,105230.0,0.49787792]
[1737283907204,0.047594,105250.0,105240.0,0.047596]
[1737283907412,0.047594,105250.0,105240.0,0.408396]
[1737283909213,0.047594,105250.0,105240.0,0.047596]
[1737283909712,0.047594,105250.0,105240.0,0.408396]
[1737283909911,0.047597,105240.0,105230.0,0.49788092]
[1737283910104,0.41891158,105240.0,105220.0,0.564304]
[1737283910305,0.10571358,105230.0,105220.0,0.1559]
[1737283910510,0.46651358,105230.0,105220.0,0.1559]
[1737283910805,0.46651358,105230.0,105220.0,0.59381293]
[1737283911018,0.46651358,105230.0,105220.0,0.54620593]
[1737283911213,0.46651358,105230.0,105220.0,0.39030593]
[1737283911618,0.408402,105230.0,105220.0,0.39030593]
[1737283912118,0.408402,105230.0,105220.0,0.43791293]
[1737283912317,0.57941409,105230.0,105220.0,0.047607]
[1737283913516,0.72186129,105230.0,105220.0,0.047607]
[1737283913918,0.77997287,105230.0,105220.0,0.047607]
[1737283914621,0.63752567,105230.0,105220.0,0.047607]
[1737283915113,0.57941409,105230.0,105220.0,0.047607]
[1737283915304,0.21861409,105230.0,105220.0,0.047607]
[1737283915717,0.27672567,105230.0,105220.0,0.047607]
[1737283919418,0.10571358,105230.0,105220.0,0.047607]
[1737283921024,0.10571358,105230.0,105210.0,0.73046773]
[1737283921229,0.047607,105220.0,105210.0,0.73344537]
[1737283921429,0.10571858,105220.0,105210.0,0.37264537]
[1737283921614,0.46651858,105220.0,105210.0,0.28351142]
[1737283921816,0.54081858,105220.0,105210.0,0.28351142]
[1737283923227,0.047616,105200.0,105190.0,0.29317227]
[1737283923527,0.46652758,105200.0,105190.0,0.28351142]
[1737283924330,0.52463916,105200.0,105190.0,0.28351142]
[1737283924525,0.88543916,105200.0,105190.0,0.28351142]
[1737283924828,0.047625,105180.0,105170.0,0.28351142]
[1737283925127,0.408425,105180.0,105170.0,0.29299408]
[1737283925324,0.82733658,105180.0,105170.0,0.28351142]
[1737283925524,0.98273658,105180.0,105170.0,0.28351142]
[1737283925731,0.047629,105170.0,105160.0,0.34038379]
[1737283925932,0.047638,105150.0,105140.0,0.85251005]
[1737283926225,0.10574958,105150.0,105140.0,0.49468954]
[1737283926431,0.46654958,105150.0,105140.0,0.49171005]
[1737283926820,0.10574958,105150.0,105140.0,0.50140399]
[1737283927222,0.10574958,105150.0,105140.0,0.1610202]
[1737283928022,0.047638,105150.0,105140.0,0.15959394]
[1737283928323,0.408438,105150.0,105140.0,0.15959394]
[1737283928631,0.46654958,105150.0,105140.0,0.1499]
[1737283928826,0.047643,105140.0,105130.0,1.5754]
[1737283929030,0.41891158,105140.0,105120.0,0.3608]
[1737283929233,0.408447,105130.0,105120.0,0.0093036]
[1737283929540,0.047652,105120.0,105110.0,1.7362]
[1737283929725,0.047652,105120.0,105110.0,0.2362]
[1737283929726,0.408452,105120.0,105110.0,0.2362]
[1737283930129,0.047652,105120.0,105110.0,0.2362]
[1737283932228,0.41891158,105140.0,105110.0,0.24569897]
[1737283932536,0.05811158,105130.0,105110.0,0.24569897]
[1737283932930,0.41891158,105130.0,105110.0,0.60649897]
[1737283933127,0.05811158,105130.0,105110.0,0.60649897]
[1737283933628,0.047652,105120.0,105110.0,0.60649897]
[1737283935829,0.047652,105120.0,105110.0,2.10649897]
[1737283936139,0.047652,105120.0,105110.0,2.02829897]
[1737283937639,0.047652,105120.0,105110.0,1.66749897]
[1737283939140,0.10576358,105120.0,105110.0,0.16749897]
[1737283939636,0.10576358,105120.0,105110.0,1.66749897]
[1737283940035,0.10576358,105120.0,105110.0,0.16749897]
[1737283941241,0.46656358,105120.0,105110.0,0.16749897]
[1737283942228,0.10576358,105120.0,105110.0,0.52829897]
[1737283942432,0.047652,105120.0,105110.0,0.52829897]
[1737283943140,0.047652,105120.0,105110.0,0.57595597]
[1737283944437,0.41891158,105130.0,105110.0,0.57595597]
[1737283944743,0.047652,105120.0,105110.0,0.57595597]
[1737283946133,0.10576358,105120.0,105110.0,0.21515597]
[1737283947241,0.10576358,105120.0,105110.0,0.33630582]
[1737283947437,0.46656358,105120.0,105110.0,0.32680685]
[1737283948437,0.10576358,105120.0,105110.0,0.32680685]
[1737283948637,0.46656358,105120.0,105110.0,0.32680685]
[1737283949034,0.10576358,105120.0,105110.0,0.32680685]
[1737283949738,0.46656358,105120.0,105110.0,0.158]
[1737283950242,0.10576358,105120.0,105110.0,0.158]
[1737283951140,0.10576358,105120.0,105110.0,0.32680685]
[1737283951441,0.46656358,105120.0,105110.0,0.32680685]
[1737283952540,0.46656358,105120.0,105110.0,0.55245819]
[1737283952740,0.46656358,105120.0,105110.0,0.39445819]
[1737283953041,0.52467516,105120.0,105110.0,0.39445819]
[1737283953243,0.68197516,105120.0,105110.0,0.39445819]
[1737283955250,0.68197516,105120.0,105110.0,0.16880685]
[1737283956341,0.62386358,105120.0,105110.0,0.16880685]
[1737283956642,0.62386358,105120.0,105110.0,0.39445819]
[1737283957544,0.62386358,105120.0,105110.0,1.03747303]
[1737283957753,0.62386358,105120.0,105110.0,1.20733599]
[1737283959150,0.62386358,105120.0,105110.0,0.8669522]
[1737283961248,0.68197516,105120.0,105110.0,0.8669522]
[1737283962446,0.047657,105110.0,105100.0,0.49716146]
[1737283962655,0.54356858,105110.0,105100.0,0.1]
[1737283964244,0.65774998,105110.0,105100.0,0.27080788]
[1737283966558,0.65774998,105110.0,105100.0,0.1]
[1737283967057,0.667219,105110.0,105100.0,0.1]
[1737283967858,0.667219,105110.0,105100.0,0.27080788]
[1737283969257,0.667219,105110.0,105100.0,0.1]
[1737283970562,0.047661,105100.0,105090.0,0.39855173]
[1737283970756,0.46657258,105100.0,105090.0,0.39855173]
[1737283971860,0.047666,105090.0,105080.0,0.16427686]
[1737283972063,0.047666,105090.0,105080.0,0.1547]
[1737283972064,0.46657758,105090.0,105080.0,0.1547]
[1737283973061,0.60919171,105090.0,105080.0,0.1547]
[1737283975858,0.60919171,105090.0,105070.0,0.0756]
[1737283976060,0.46658158,105080.0,105070.0,0.0756]
[1737283976263,0.047675,105070.0,105060.0,0.73606975]
[1737283976453,0.10578658,105070.0,105060.0,0.37825176]
[1737283977060,0.10578658,105070.0,105060.0,0.20446187]
[1737283977662,0.10578658,105070.0,105060.0,0.20744399]
[1737283977853,0.10578658,105070.0,105060.0,0.20446187]
[1737283978761,0.36249993,105070.0,105060.0,0.20446187]
[1737283979160,0.72329993,105070.0,105060.0,0.20446187]
[1737283979859,0.72329993,105070.0,105060.0,0.37526975]
[1737283979860,0.46658658,105070.0,105060.0,0.37526975]
[1737283980963,0.46658658,105070.0,105060.0,0.32759075]
[1737283981357,0.5806858,105070.0,105060.0,0.15678287]
[1737283982364,0.2198858,105070.0,105060.0,0.15678287]
[1737283982759,0.5806858,105070.0,105060.0,0.15678287]
[1737283982964,0.2198858,105070.0,105060.0,0.15678287]
[1737283983166,0.5806858,105070.0,105060.0,0.15678287]
[1737283984158,0.2198858,105070.0,105060.0,0.15678287]
[1737283984558,0.2198858,105070.0,105060.0,0.56526187]
[1737283986872,0.16177422,105070.0,105060.0,0.56526187]
[1737283987572,0.19028913,105070.0,105060.0,0.56526187]
[1737283989768,0.30438069,105070.0,105060.0,0.56526187]
[1737283991975,0.19028913,105070.0,105060.0,0.56526187]
[1737283994676,0.16186424,105070.0,105060.0,0.9638136]
[1737283995376,0.16186424,105070.0,105060.0,0.96679559]
[1737283996473,0.21997582,105070.0,105060.0,0.96679559]
[1737283996872,0.58077582,105070.0,105060.0,0.6030136]
[1737283997073,0.58077582,105070.0,105060.0,0.5553346]
[1737283997273,0.58077582,105070.0,105060.0,0.38452672]
[1737283998371,0.60920071,105070.0,105060.0,0.15678287]
[1737283998572,0.24840071,105070.0,105060.0,0.15678287]
[1737283998773,0.60920071,105070.0,105060.0,0.15678287]
[1737283998971,0.60920071,105070.0,105050.0,0.22774385]
[1737283999179,0.46659058,105060.0,105050.0,0.22774385]
[1737283999983,0.54469058,105060.0,105050.0,0.22774385]
[1737284000180,0.18389058,105060.0,105050.0,0.22774385]
[1737284000483,0.54469058,105060.0,105050.0,0.22774385]
[1737284001091,0.62899058,105060.0,105050.0,0.22774385]
[1737284001385,0.77160471,105060.0,105050.0,0.17113471]
[1737284002681,0.047684,105050.0,105040.0,0.17228462]
[1737284002877,0.46659558,105050.0,105040.0,0.17228462]
[1737284003785,0.63794961,105050.0,105040.0,0.17228462]
[1737284005874,0.047688,105040.0,105030.0,0.13219]
[1737284006077,0.10579958,105040.0,105030.0,0.13219]
[1737284006685,0.047688,105040.0,105030.0,0.13219]
[1737284007685,0.19040231,105040.0,105030.0,0.13219]
[1737284008072,0.24851389,105040.0,105030.0,0.13219]
[1737284008277,0.60931389,105040.0,105030.0,0.13219]
[1737284008680,0.047693,105030.0,105020.0,0.73723071]
[1737284008880,0.047693,105030.0,105020.0,0.93407581]
[1737284009189,0.047693,105030.0,105020.0,0.93705891]
[1737284009485,0.10580458,105030.0,105020.0,0.94660443]
[1737284009688,0.10580458,105030.0,105020.0,0.94362133]
[1737284010489,0.10580458,105030.0,105020.0,1.05815178]
[1737284011283,0.10580458,105030.0,105020.0,0.69735178]
[1737284012387,0.10580458,105030.0,105020.0,0.46923163]
[1737284013195,0.46660458,105030.0,105020.0,0.38593163]
[1737284013379,0.46660458,105030.0,105020.0,0.32869011]
[1737284013380,0.10580458,105030.0,105020.0,0.32869011]
[1737284013580,0.46660458,105030.0,105020.0,0.1576]
[1737284018396,0.047693,105030.0,105020.0,0.566098]
[1737284019198,0.11414843,105040.0,105020.0,0.62420958]
[1737284019385,0.11414843,105040.0,105030.0,0.492893]
[1737284019890,0.58074601,105050.0,105040.0,0.047688]
[1737284020096,0.53306001,105050.0,105030.0,0.4452]
[1737284020301,0.53306001,105050.0,105030.0,0.492892]
[1737284020302,0.10579958,105040.0,105030.0,0.492892]
[1737284020594,0.047688,105040.0,105030.0,0.492892]
[1737284020795,0.047688,105040.0,105030.0,0.66398211]
[1737284021996,0.10579958,105040.0,105030.0,0.66398211]
[1737284024492,0.24851389,105040.0,105030.0,0.492892]
[1737284025690,0.41986792,105040.0,105030.0,0.492892]
[1737284027488,0.42096792,105040.0,105030.0,0.492892]
[1737284027690,0.42096792,105040.0,105030.0,0.49587487]
[1737284027898,0.36285634,105040.0,105030.0,0.49587487]
[1737284028094,0.22014203,105040.0,105030.0,0.49587487]
[1737284028503,0.22014203,105040.0,105030.0,0.50548076]
[1737284029197,0.27825361,105040.0,105030.0,0.50548076]
[1737284029401,0.32464772,105040.0,105030.0,0.50548076]
[1737284029796,0.32464772,105040.0,105030.0,0.50249789]
[1737284029998,0.32464772,105040.0,105030.0,0.50574477]
[1737284030498,0.32464772,105040.0,105030.0,0.14494477]
[1737284030699,0.27825361,105040.0,105030.0,0.50574477]
[1737284031307,0.27825361,105040.0,105030.0,0.5027619]
[1737284031610,0.22014203,105040.0,105030.0,0.50574477]
[1737284032312,0.16307592,105040.0,105030.0,0.90197216]
[1737284033712,0.2211875,105040.0,105030.0,0.90197216]
[1737284034310,0.2211875,105040.0,105030.0,0.40908016]
[1737284034706,0.2211875,105040.0,105030.0,0.39947427]
[1737284035109,0.24975948,105040.0,105030.0,0.17135412]
[1737284037421,0.1916479,105040.0,105030.0,0.21904712]
[1737284037808,0.1916479,105040.0,105030.0,0.57984712]
[1737284038007,0.1916479,105040.0,105030.0,0.21904712]
[1737284038206,0.24975948,105040.0,105030.0,0.21904712]
[1737284040113,0.24975948,105040.0,105030.0,0.57984712]
[1737284044216,0.61055948,105040.0,105030.0,0.17135412]
[1737284044820,0.66867106,105040.0,105030.0,0.17135412]
[1737284045220,0.75057106,105040.0,105030.0,0.17135412]
[1737284045915,0.77906519,105040.0,105030.0,0.00026401]
[1737284047018,0.86349304,105040.0,105030.0,0.00026401]
[1737284048921,0.047698,105020.0,105010.0,0.081]
[1737284049128,0.46660958,105020.0,105010.0,0.081]
[1737284049524,0.047702,105010.0,105000.0,0.2586284]
[1737284049814,0.46661358,105010.0,105000.0,0.2572]
[1737284050220,0.46661358,105010.0,105000.0,0.1]
[1737284050421,0.54811358,105010.0,105000.0,0.1]
[1737284051121,0.047711,104990.0,104980.0,0.56291026]
[1737284051317,0.047716,104980.0,104970.0,0.17109011]
[1737284051522,0.46662758,104980.0,104970.0,0.17109011]
[1737284053118,0.3608,104990.0,104970.0,0.17109011]
[1737284053119,0.41788207,104990.0,104970.0,0.17109011]
[1737284053321,0.047712,104990.0,104980.0,0.3608]
[1737284053626,0.047712,104990.0,104980.0,0.442]
[1737284054021,0.83707813,105010.0,104980.0,0.54782758]
[1737284054228,0.47627813,105010.0,104990.0,0.563911]
[1737284054629,0.11392541,105000.0,104990.0,0.563911]
[1737284054818,0.11392541,105000.0,104990.0,0.62202258]
[1737284055131,0.37051884,105010.0,105000.0,0.047707]
[1737284055326,0.37051884,105010.0,105000.0,0.408507]
[1737284055933,0.00142929,105020.0,105000.0,0.408507]
[1737284056132,0.00142929,105020.0,105010.0,0.439]
[1737284056929,0.00142929,105020.0,105010.0,0.0782]
[1737284057826,0.05954087,105020.0,105010.0,0.0782]
[1737284058022,0.10723887,105020.0,105010.0,0.0782]
[1737284058836,0.047702,105010.0,105000.0,0.7267]
[1737284059129,0.10581358,105010.0,105000.0,0.7267]
[1737284060628,0.46661358,105010.0,105000.0,0.3659]
[1737284061030,0.54471358,105010.0,105000.0,0.3659]
[1737284061234,0.54471358,105010.0,104990.0,0.65509082]
[1737284061424,0.05811158,105000.0,104990.0,0.29429082]
[1737284061626,0.05811158,105000.0,104990.0,0.65509082]
[1737284062039,0.18391358,105010.0,104990.0,0.65509082]
[1737284062931,0.17088812,105000.0,104990.0,0.65509082]
[1737284064033,0.21729843,105000.0,104990.0,0.65509082]
[1737284064832,0.26500443,105000.0,104990.0,0.65509082]